bitfinex-derivatives/quotes_SOLF0:USTF0_20250113
["timestamp","ask_amount","ask_price","bid_price","bid_amount"]
[1736807027336,8.26103158,182.92,182.87,2.7351]
[1736807027542,8.26103158,182.92,182.85,8.26103158]
[1736807027746,8.26103158,182.92,182.89,2.7347]
[1736807027933,8.26103158,182.92,182.85,8.26103158]
[1736807027934,1.702,182.95,182.87,8.26103158]
[1736807028139,10.99513158,182.94,182.87,8.26103158]
[1736807028344,8.26103158,182.94,182.89,8.26103158]
[1736807028535,11.52623158,182.96,182.89,8.26103158]
[1736807028738,2.734,182.95,182.89,8.26103158]
[1736807029037,10.99503158,182.95,182.9,2.7346]
[1736807029235,10.99503158,182.95,182.89,8.26103158]
[1736807029438,8.26103158,182.95,182.92,2.7343]
[1736807029741,8.26103158,182.95,182.89,8.26103158]
[1736807030441,1.5762,182.96,182.89,8.26103158]
[1736807030638,9.83723158,182.96,182.89,8.26103158]
[1736807031743,8.26103158,182.94,182.89,8.26103158]
[1736807032040,8.26103158,182.94,182.87,8.26103158]
[1736807032237,2.7345,182.91,182.85,8.26103158]
[1736807033434,2.7345,182.91,182.87,2.735]
[1736807033634,10.99513158,182.94,182.87,8.26103158]
[1736807033946,2.7341,182.94,182.89,2.7347]
[1736807034147,8.26103158,182.93,182.89,2.7347]
[1736807035745,8.26103158,182.93,182.9,2.7346]
[1736807035945,1.5762,182.96,182.89,8.26103158]
[1736807036146,12.57113158,182.96,182.89,8.26103158]
[1736807036447,12.57113158,182.96,182.85,3.3267]
[1736807036647,12.57113158,182.96,182.89,8.26103158]
[1736807037144,12.57113158,182.96,182.92,2.7342]
[1736807038848,1.5882,183.0,182.91,8.26103158]
[1736807039047,8.26103158,182.97,182.94,2.734]
[1736807039547,8.26103158,182.97,182.92,2.7342]
[1736807039744,8.26103158,182.97,182.91,14.24103158]
[1736807039745,8.26103158,182.99,182.93,8.26103158]
[1736807040146,8.26103158,182.99,182.97,2.7335]
[1736807040343,8.26103158,182.99,182.93,8.26103158]
[1736807040652,8.26103158,183.01,182.95,8.26103158]
[1736807040843,8.26103158,183.03,182.97,8.26103158]
[1736807041445,8.26103158,183.03,183.0,2.733]
[1736807042948,8.26103158,183.03,183.01,2.733]
[1736807043250,8.26103158,183.05,182.99,8.26103158]
[1736807043446,8.26103158,183.05,182.99,14.24103158]
[1736807043844,4.1418121,183.14,182.99,14.24103158]
[1736807043845,4.1418121,183.14,183.03,8.26103158]
[1736807044048,4.1418121,183.14,183.06,2.7323]
[1736807044049,8.26103158,183.09,183.06,2.7323]
[1736807044653,8.26103158,183.09,183.07,2.7321]
[1736807044855,3.3719,183.13,183.06,5.98]
[1736807045055,24.86602018,183.17,183.07,8.26103158]
[1736807045351,2.7308,183.16,183.11,2.7314]
[1736807045555,37.75295178,183.17,183.06,5.98]
[1736807045751,24.86602018,183.17,183.06,5.98]
[1736807045954,14.4644316,183.18,183.12,2.7312]
[1736807046155,14.4644316,183.18,183.06,5.98]
[1736807046457,2.7306,183.17,183.06,5.98]
[1736807046857,2.7306,183.17,183.09,2.7318]
[1736807047051,2.7306,183.17,183.06,5.98]
[1736807047461,2.7308,183.16,183.1,2.7315]
[1736807047654,2.7308,183.16,183.06,5.98]
[1736807047852,1.5775,183.18,183.06,5.98]
[1736807048051,2.7306,183.17,183.11,2.7314]
[1736807049858,2.7306,183.17,183.12,2.7314]
[1736807051657,2.7308,183.16,183.1,2.7315]
[1736807052159,2.7308,183.16,183.06,5.98]
[1736807053458,2.7309,183.15,183.1,2.7315]
[1736807053661,12.8869316,183.16,183.05,12.8869316]
[1736807053856,12.8869316,183.16,183.06,5.96]
[1736807054260,2.7312,183.14,183.09,2.7318]
[1736807056961,2.7314,183.12,183.07,2.7321]
[1736807058558,2.7312,183.13,183.09,2.7318]
[1736807058756,2.7312,183.13,183.06,5.96]
[1736807059157,2.7314,183.12,183.07,2.732]
[1736807059754,2.7314,183.12,183.08,2.7319]
[1736807060358,2.7317,183.1,183.05,2.7324]
[1736807060560,12.8869316,183.12,183.02,5.96]
[1736807060957,2.7318,183.09,183.03,2.7326]
[1736807061665,2.7318,183.09,183.04,2.7325]
[1736807062365,2.7318,183.09,183.05,2.7324]
[1736807062864,12.8869316,183.1,183.04,2.7325]
[1736807063061,12.8869316,183.1,183.01,5.96]
[1736807063854,12.8869316,183.1,183.05,2.7323]
[1736807063855,2.7319,183.09,183.05,2.7323]
[1736807064063,12.8869316,183.1,183.01,5.96]
[1736807064461,15.6187316,183.1,183.01,5.96]
[1736807065260,2.7318,183.09,183.01,5.96]
[1736807065464,12.8869316,183.1,183.01,5.96]
[1736807065661,3.2523,183.11,183.01,18.8469316]
[1736807065865,12.8869316,183.13,183.08,2.7319]
[1736807067067,2.7314,183.12,183.08,2.7319]
[1736807067564,8.2508109,183.11,183.08,2.7319]
[1736807069270,10.9823109,183.11,183.08,2.7319]
[1736807073975,159.87627147,183.23,183.1,8.2508109]
[1736807074170,151.62546057,183.23,183.11,10.9196]
[1736807074372,8.2508109,183.21,183.13,8.2508109]
[1736807074570,8.2508109,183.21,183.16,2.7308]
[1736807074770,8.2508109,183.19,183.16,2.7308]
[1736807074972,8.2508109,183.19,183.14,2.7309]
[1736807075172,8.2508109,183.17,183.11,3.2579]
[1736807075373,8.2508109,183.17,183.11,7.8369]
[1736807075575,8.2508109,183.17,183.12,2.7313]
[1736807077775,8.2508109,183.16,183.12,2.7313]
[1736807082083,8.2508109,183.18,183.11,16.0877109]
[1736807083087,8.2508109,183.18,183.15,2.7309]
[1736807083776,8.2508109,183.18,183.16,2.7307]
[1736807087089,8.2508109,183.2,183.13,8.2508109]
[1736807087286,8.2508109,183.2,183.17,2.7306]
[1736807087990,1.5732,183.23,183.17,2.7306]
[1736807088192,8.2508109,183.2,183.17,2.7306]
[1736807089191,8.2508109,183.2,183.18,2.7304]
[1736807089593,8.2508109,183.2,183.16,2.7306]
[1736807089893,8.2508109,183.17,183.16,2.7306]
[1736807090294,2.73,183.22,183.16,2.7306]
[1736807090596,8.2508109,183.17,183.16,2.7306]
[1736807094496,8.2508109,183.19,183.14,6.14]
[1736807094693,8.2508109,183.19,183.17,2.7305]
[1736807096394,8.2508109,183.19,183.15,2.7309]
[1736807096595,8.2508109,183.17,183.15,2.7309]
[1736807099398,8.2508109,183.17,183.14,6.14]
[1736807099604,8.2508109,183.15,183.1,6.08]
[1736807100201,8.2508109,183.15,183.12,2.7312]
[1736807101104,1.7122,183.19,183.08,14.3308109]
[1736807101296,8.2508109,183.15,183.08,8.2508109]
[1736807101499,8.2508109,183.11,183.08,2.7319]
[1736807101699,8.2508109,183.11,183.04,14.3308109]
[1736807101896,8.2508109,183.13,183.06,8.2508109]
[1736807102100,8.2508109,183.13,183.1,2.7316]
[1736807102301,8.2508109,183.13,183.06,8.2508109]
[1736807102497,8.2508109,183.15,183.08,8.2508109]
[1736807102804,8.2508109,183.15,183.12,2.7312]
[1736807105305,8.2508109,183.13,183.0,3.3678]
[1736807105603,8.2508109,183.09,183.03,8.2508109]
[1736807106810,8.2508109,183.09,183.02,6.06]
[1736807107902,6.06,183.18,183.02,6.06]
[1736807108102,8.2508109,183.11,183.03,8.2508109]
[1736807108709,8.2508109,183.09,183.06,2.7322]
[1736807109101,8.2508109,183.09,183.03,8.2508109]
[1736807109304,8.2508109,183.09,183.04,2.7324]
[1736807109508,8.2508109,183.09,183.03,8.2508109]
[1736807110110,8.2508109,183.09,183.07,2.7321]
[1736807111211,2.7312,183.14,183.05,8.2508109]
[1736807111409,8.2508109,183.13,183.07,8.2508109]
[1736807111807,2.7305,183.18,183.12,2.7314]
[1736807112112,1.7122,183.19,183.09,8.2508109]
[1736807112313,8.2508109,183.16,183.09,14.2908109]
[1736807112905,1.7122,183.19,183.11,8.2508109]
[1736807113106,8.2508109,183.18,183.11,8.2508109]
[1736807113415,8.2508109,183.19,183.18,2.7305]
[1736807115114,1.6405,183.25,183.17,8.2508109]
[1736807115309,8.2508109,183.23,183.17,8.2508109]
[1736807115819,8.2508109,183.23,183.22,2.7299]
[1736807116514,1.6405,183.25,183.22,2.7299]
[1736807116717,8.2508109,183.24,183.22,2.7299]
[1736807121014,8.2508109,183.26,183.22,2.7299]
[1736807121221,8.2508109,183.24,183.22,2.7299]
[1736807121719,4.3814,183.28,183.22,2.7299]
[1736807122028,8.2508109,183.24,183.22,2.7299]
[1736807124120,1.6523,183.28,183.23,2.7297]
[1736807124523,8.2508109,183.26,183.23,2.7297]
[1736807124724,1.6523,183.28,183.23,2.7297]
[1736807125027,8.2508109,183.26,183.23,2.7297]
[1736807126327,8.2508109,183.24,183.23,2.7297]
[1736807126730,1.6523,183.28,183.23,2.7297]
[1736807126928,8.2508109,183.26,183.23,2.7297]
[1736807128530,8.2508109,183.24,183.23,2.7297]
[1736807131234,1.6523,183.28,183.23,2.7297]
[1736807131532,8.2508109,183.26,183.23,2.7297]
[1736807134235,8.2508109,183.24,183.21,2.7299]
[1736807135939,8.2508109,183.22,183.21,2.7299]
[1736807137237,1.6288,183.29,183.17,14.3108109]
[1736807137439,8.2508109,183.25,183.24,2.7295]
[1736807142630,1.6288,183.29,183.24,2.7295]
[1736807142939,8.2508109,183.25,183.24,2.7295]
[1736807153455,1.6288,183.29,183.24,2.7295]
[1736807153654,8.2508109,183.26,183.18,8.2508109]
[1736807153855,8.2508109,183.26,183.25,2.7294]
[1736807163770,8.2508109,183.28,183.27,2.7291]
[1736807164367,8.2508109,183.28,183.25,2.7293]
[1736807164670,8.2508109,183.26,183.25,2.7293]
[1736807169768,1.6288,183.29,183.25,2.7293]
[1736807169971,10.9801109,183.26,183.15,8.2508109]
[1736807170176,8.2508109,183.22,183.15,8.2508109]
[1736807170574,8.2508109,183.22,183.2,2.7301]
[1736807170770,8.2508109,183.22,183.15,8.2508109]
[1736807171176,8.2508109,183.22,183.21,2.73]
[1736807172172,8.2508109,183.22,183.15,8.2508109]
[1736807172470,8.2508109,183.22,183.2,2.7302]
[1736807174172,8.2508109,183.24,183.2,2.7302]
[1736807174376,2.7292,183.27,183.17,8.2508109]
[1736807174673,8.2508109,183.24,183.17,8.2508109]
[1736807175577,8.2508109,183.25,183.17,8.2508109]
[1736807176074,8.2508109,183.25,183.23,2.7296]
[1736807178177,8.2508109,183.27,183.19,8.2508109]
[1736807178777,8.2508109,183.27,183.24,2.7295]
[1736807182382,12.6084109,183.29,183.24,2.7295]
[1736807182681,8.2508109,183.27,183.24,2.7295]
[1736807184178,8.2508109,183.27,183.25,2.7294]
[1736807188282,8.2508109,183.27,183.24,2.7295]
[1736807188478,8.2508109,183.27,183.2,8.2508109]
[1736807188783,8.2508109,183.27,183.24,2.7295]
[1736807191783,8.2508109,183.25,183.18,5.96]
[1736807192179,8.2508109,183.25,183.2,2.7301]
[1736807192781,8.2508109,183.25,183.18,5.96]
[1736807192782,8.2508109,183.25,183.21,2.73]
[1736807193187,10.9803109,183.25,183.18,5.96]
[1736807193680,10.9803109,183.25,183.2,2.7301]
[1736807194482,8.2508109,183.23,183.19,2.7303]
[1736807196685,8.2508109,183.23,183.16,8.2508109]
[1736807196986,10.9805109,183.23,183.18,2.7304]
[1736807198087,8.2508109,183.23,183.19,2.7303]
[1736807198289,8.2508109,183.23,183.16,8.2508109]
[1736807199982,8.2508109,183.23,183.18,2.7304]
[1736807201692,8.2508109,183.23,183.16,8.2508109]
[1736807201886,8.2508109,183.23,183.19,2.7303]
[1736807203191,8.2508109,183.23,183.18,2.7304]
[1736807204593,2.7296,183.24,183.18,2.7304]
[1736807204891,8.2508109,183.23,183.18,2.7304]
[1736807206888,8.2508109,183.24,183.19,2.7302]
[1736807207094,8.2508109,183.24,183.17,8.2508109]
[1736807207891,8.2508109,183.24,183.19,2.7302]
[1736807208089,8.2508109,183.24,183.17,8.2508109]
[1736807209693,8.2508109,183.24,183.22,2.7298]
[1736807211597,8.2508109,183.24,183.17,8.2508109]
[1736807211787,8.2508109,183.24,183.23,2.7297]
[1736807216299,8.2508109,183.26,183.23,2.7297]
[1736807217800,8.2508109,183.26,183.19,8.2508109]
[1736807218003,8.2508109,183.26,183.24,2.7296]
[1736807222105,10.9801109,183.26,183.24,2.7296]
[1736807222808,10.9801109,183.26,183.23,2.7297]
[1736807224012,4.3577,183.29,183.26,2.7293]
[1736807224215,8.2508109,183.28,183.26,2.7293]
[1736807225611,8.2508109,183.27,183.26,2.7293]
[1736807226116,4.3577,183.29,183.26,2.7293]
[1736807226316,8.2508109,183.28,183.26,2.7293]
[1736807228918,8.2508109,183.28,183.25,2.7294]
[1736807229617,2.7286,183.31,183.27,2.7291]
[1736807229815,8.2508109,183.28,183.27,2.7291]
[1736807230117,8.2508109,183.28,183.22,5.96]
[1736807232413,8.2508109,183.28,183.25,2.7294]
[1736807234018,8.2508109,183.28,183.22,5.96]
[1736807234220,8.2508109,183.28,183.24,2.7295]
[1736807235320,8.2508109,183.28,183.25,2.7294]
[1736807240522,8.2508109,183.26,183.25,2.7294]
[1736807244526,2.7286,183.31,183.26,2.7292]
[1736807244726,8.2508109,183.27,183.26,2.7292]
[1736807245322,2.7286,183.31,183.24,2.7295]
[1736807245525,8.2508109,183.28,183.22,14.2108109]
[1736807246829,8.2508109,183.28,183.27,2.7291]
[1736807255730,1.6593,183.35,183.29,2.7288]
[1736807255926,8.2508109,183.31,183.24,8.2508109]
[1736807256229,8.2508109,183.32,183.24,8.2508109]
[1736807256534,8.2508109,183.32,183.26,8.2508109]
[1736807256935,8.2508109,183.32,183.3,2.7286]
[1736807257332,8.2508109,183.32,183.22,5.96]
[1736807257532,8.2508109,183.3,183.29,2.7288]
[1736807265743,8.2508109,183.32,183.29,2.7288]
[1736807270838,2.7282,183.33,183.29,2.7288]
[1736807271033,8.2508109,183.32,183.29,2.7288]
[1736807271944,8.2508109,183.32,183.27,2.7291]
[1736807272143,8.2508109,183.32,183.25,8.2508109]
[1736807272645,8.2508109,183.32,183.29,2.7287]
[1736807272944,2.7281,183.34,183.22,5.96]
[1736807273144,8.2508109,183.32,183.25,8.2508109]
[1736807273344,2.7281,183.34,183.25,8.2508109]
[1736807273644,8.2508109,183.33,183.25,8.2508109]
[1736807274239,8.2508109,183.33,183.3,2.7286]
[1736807278341,8.2508109,183.33,183.31,2.7285]
[1736807280847,4.3872,183.35,183.25,8.2508109]
[1736807281042,8.2508109,183.33,183.25,8.2508109]
[1736807281345,8.2508109,183.33,183.22,5.96]
[1736807281643,8.2508109,183.33,183.24,8.2508109]
[1736807282148,8.2508109,183.31,183.22,5.96]
[1736807282338,8.2508109,183.31,183.23,8.2508109]
[1736807282541,10.9794109,183.31,183.26,2.7292]
[1736807283648,10.9794109,183.31,183.23,14.2108109]
[1736807284354,10.9794109,183.31,183.26,2.7292]
[1736807284747,8.2508109,183.31,183.26,2.7292]
[1736807284944,2.7287,183.3,183.26,2.7292]
[1736807285646,2.7289,183.29,183.25,2.7294]
[1736807285850,10.9797109,183.29,183.25,2.7294]
[1736807290548,8.2508109,183.29,183.25,2.7294]
[1736807292650,2.7287,183.3,183.23,5.96]
[1736807292950,2.7285,183.32,183.27,8.2508109]
[1736807293455,2.7285,183.32,183.28,2.7289]
[1736807294355,10.9793109,183.32,183.28,2.7289]
[1736807294555,10.9793109,183.32,183.25,8.2508109]
[1736807295654,8.2508109,183.32,183.25,8.2508109]
[1736807295856,8.2508109,183.34,183.27,8.2508109]
[1736807296154,1.6593,183.35,183.27,8.2508109]
[1736807296454,8.2508109,183.33,183.29,2.7287]
[1736807298155,1.6593,183.35,183.27,8.2508109]
[1736807298353,8.2508109,183.34,183.27,8.2508109]
[1736807298858,10.9789109,183.34,183.29,10.9795109]
[1736807300055,10.9789109,183.34,183.29,2.7287]
[1736807300660,2.7284,183.32,183.27,2.7291]
[1736807300959,10.9792109,183.32,183.27,2.7291]
[1736807301458,8.2508109,183.32,183.23,5.96]
[1736807301655,8.2508109,183.32,183.24,8.2508109]
[1736807301861,8.2508109,183.3,183.24,8.2508109]
[1736807303262,10.9796109,183.3,183.25,2.7294]
[1736807307257,8.2508109,183.3,183.21,3.2491]
[1736807307469,8.2508109,183.26,183.2,2.7301]
[1736807308861,2.7295,183.25,183.2,2.7301]
[1736807309058,8.2508109,183.26,183.19,99.71075004]
[1736807309257,3.2113,183.31,183.14,1.6408]
[1736807309258,8.2508109,183.24,183.14,1.6408]
[1736807309464,2.7301,183.21,183.15,8.2508109]
[1736807309863,2.7301,183.21,183.16,2.7307]
[1736807311966,10.9807109,183.22,183.17,8.39656511]
[1736807312468,2.7301,183.21,183.17,5.66596511]
[1736807312965,8.2508109,183.22,183.17,5.66596511]
[1736807313464,10.9808109,183.22,183.17,8.39656511]
[1736807313661,10.9808109,183.22,183.17,5.66596511]
[1736807314868,10.9808109,183.22,183.18,2.7304]
[1736807316769,8.2508109,183.22,183.18,2.7304]
[1736807316965,2.73,183.21,183.18,2.7304]
[1736807322373,2.73,183.22,183.18,2.7304]
[1736807322781,2.73,183.21,183.18,2.7304]
[1736807323685,2.73,183.21,183.17,5.66596511]
[1736807323885,2.73,183.21,183.17,8.39656511]
[1736807332191,8.2508109,183.21,183.17,5.66596511]
[1736807332385,2.7303,183.19,183.13,14.1908109]
[1736807334089,2.7303,183.19,183.15,2.7309]
[1736807337691,2.7302,183.2,183.15,10.9817109]
[1736807340094,2.7302,183.2,183.15,8.2508109]
[1736807340294,2.7302,183.2,183.16,2.7307]
[1736807341292,2.7301,183.21,183.17,2.7306]
[1736807341694,8.2508109,183.22,183.15,8.2508109]
[1736807341889,176.53588977,183.31,183.17,8.2508109]
[1736807342095,8.2508109,183.26,183.19,8.2508109]
[1736807343199,10.9801109,183.26,183.22,2.7298]
[1736807343989,8.2508109,183.24,183.22,2.7298]
[1736807346199,2.7294,183.25,183.22,2.7298]
[1736807346500,10.9802109,183.25,183.22,2.7298]
[1736807349001,10.9802109,183.25,183.21,2.7299]
[1736807352196,8.2508109,183.23,183.17,5.94]
[1736807352595,8.2508109,183.23,183.19,2.7303]
[1736807353702,2.7299,183.22,183.17,2.7305]
[1736807354091,8.2508109,183.23,183.17,2.7305]
[1736807355005,2.7303,183.19,183.14,93.80520693]
[1736807355207,10.9811109,183.19,183.14,93.80520693]
[1736807355803,10.9811109,183.19,183.14,96.53610693]
[1736807362018,8.2508109,183.19,183.14,93.80520693]
[1736807362207,2.7306,183.17,183.13,10.9820109]
[1736807362812,8.2508109,183.19,183.12,11.60760791]
[1736807363013,2.7309,183.16,183.12,11.60760791]
[1736807363614,2.7309,183.16,183.12,5.94]
[1736807364211,2.7309,183.16,183.12,8.6713]
[1736807365618,2.7309,183.16,183.12,2.7313]
[1736807366117,7.02693225,183.26,183.04,7.48251839]
[1736807366118,8.2508109,183.15,183.04,7.48251839]
[1736807366314,8.2508109,183.13,183.06,8.2508109]
[1736807366817,2.7316,183.11,183.06,8.2508109]
[1736807367215,2.7316,183.11,183.05,96.4123]
[1736807367216,8.2508109,183.11,183.05,96.4123]
[1736807367518,2.7318,183.1,183.05,104.6631109]
[1736807368323,2.732,183.08,183.05,93.68]
[1736807369618,8.2508109,183.09,183.05,93.68]
[1736807369921,2.7322,183.07,183.02,10.9836109]
[1736807370122,10.9830109,183.07,183.02,10.9836109]
[1736807370522,8.2508109,183.07,183.0,16.9239109]
[1736807370817,8.2508109,183.07,183.0,14.1908109]
[1736807372219,2.7323,183.06,183.01,2.733]
[1736807374726,2.7325,183.05,183.0,2.7331]
[1736807375027,4.13965756,183.19,183.02,8.2508109]
[1736807375325,8.2508109,183.11,183.04,8.2508109]
[1736807375722,10.9824109,183.11,183.06,2.7321]
[1736807376424,8.2508109,183.12,183.08,2.7319]
[1736807377220,8.2508109,183.17,183.14,2.731]
[1736807382130,2.7305,183.18,183.14,2.731]
[1736807382533,8.2508109,183.17,183.14,2.731]
[1736807382829,10.9814109,183.17,183.14,2.731]
[1736807384732,10.9814109,183.17,183.13,2.7312]
[1736807385530,10.9814109,183.17,183.14,2.731]
[1736807385831,8.2508109,183.17,183.14,2.731]
[1736807386432,2.7305,183.18,183.14,2.731]
[1736807387630,4.13965756,183.19,183.13,5.94]
[1736807387830,8.2508109,183.15,183.13,5.94]
[1736807389426,8.2508109,183.15,183.07,5.0474]
[1736807389626,8.2508109,183.15,183.08,8.2508109]
[1736807389837,8.2508109,183.15,183.09,5.94]
[1736807390536,2.7311,183.14,183.1,2.7316]
[1736807394340,10.9817109,183.15,183.1,2.7316]
[1736807394737,10.9817109,183.15,183.09,5.94]
[1736807394940,10.9817109,183.15,183.11,2.7315]
[1736807395637,8.2508109,183.13,183.09,5.94]
[1736807395831,8.2508109,183.13,183.07,19.2382109]
[1736807396235,10.9821109,183.13,183.08,2.7319]
[1736807396936,2.7316,183.11,183.06,2.7322]
[1736807397141,10.9824109,183.11,183.06,8.6722]
[1736807398434,8.2508109,183.11,183.04,102.10053228]
[1736807398736,8.2508109,183.09,183.04,10.9832109]
[1736807398938,8.2508109,183.09,183.01,4.7996]
[1736807398939,8.2508109,183.09,183.03,99.64]
[1736807399137,2.732,183.08,183.03,102.3726]
[1736807400043,8.2508109,183.07,183.03,102.3726]
[1736807400245,8.2508109,183.07,183.03,93.7]
[1736807400640,8.2508109,183.05,183.0,5.94]
[1736807400839,10.9835109,183.03,182.98,14.1908109]
[1736807401245,8.2508109,183.03,182.98,2.7334]
[1736807401542,8.2508109,183.03,182.94,7.48251839]
[1736807401543,8.2508109,183.01,182.94,14.1908109]
[1736807401748,8.2508109,182.99,182.94,8.2508109]
[1736807401943,2.7321,183.07,182.93,2.7342]
[1736807402145,8.2508109,182.99,182.92,117.61565189]
[1736807402542,8.2508109,182.97,182.91,5.94]
[1736807402745,5.0442,183.06,182.91,5.94]
[1736807402949,8.2508109,182.96,182.91,5.94]
[1736807403643,8.2508109,182.94,182.91,5.94]
[1736807404045,2.7336,182.98,182.91,5.94]
[1736807404245,8.2508109,182.96,182.91,5.94]
[1736807404952,5.0442,183.06,182.89,8.2508109]
[1736807405151,8.2508109,182.97,182.87,1.6085]
[1736807405342,5.0442,183.06,182.9,8.2508109]
[1736807405651,8.2508109,182.97,182.92,2.7343]
[1736807406246,8.2508109,182.95,182.9,2.7345]
[1736807406645,8.2508109,182.95,182.87,8.2508109]
[1736807406849,8.2508109,182.95,182.89,8.2508109]
[1736807407045,5.0442,183.06,182.93,8.2508109]
[1736807407249,8.2508109,183.0,182.93,8.2508109]
[1736807407554,8.2508109,183.0,182.98,2.7334]
[1736807407752,2.7325,183.05,182.98,2.7334]
[1736807407950,8.2508109,183.02,182.99,2.7332]
[1736807409244,8.2508109,183.02,183.0,2.7331]
[1736807409748,8.2508109,183.02,182.94,8.2508109]
[1736807411550,8.2508109,183.0,182.98,2.7333]
[1736807412146,8.2508109,183.0,182.94,8.2508109]
[1736807412350,8.2508109,183.0,182.99,2.7333]
[1736807415148,2.7325,183.04,182.99,2.7333]
[1736807415352,8.2508109,183.0,182.99,2.7333]
[1736807415556,2.7325,183.04,182.99,2.7333]
[1736807415855,8.2508109,183.0,182.99,2.7333]
[1736807416656,2.7325,183.04,182.99,2.7333]
[1736807416856,8.2508109,183.0,182.99,2.7333]
[1736807421160,8.2508109,183.0,182.87,3.2255]
[1736807421348,8.2508109,182.96,182.92,5.94]
[1736807421553,8.2508109,182.94,182.92,5.94]
[1736807421754,8.2508109,182.94,182.93,2.7342]
[1736807422355,5.0442,183.06,182.93,2.7342]
[1736807422356,2.7334,182.99,182.93,2.7342]
[1736807422654,8.2508109,182.94,182.93,2.7342]
[1736807423158,8.2508109,182.94,182.86,1.6386]
[1736807423456,8.2508109,182.91,182.86,7.5786]
[1736807423852,8.2508109,182.91,182.84,102.19061923]
[1736807424057,8.2508109,182.89,182.84,99.87980833]
[1736807425061,8.2508109,182.89,182.88,2.7349]
[1736807427061,8.2508109,182.89,182.87,2.7351]
[1736807427870,8.2508109,182.89,182.84,99.87980833]
[1736807429856,1.644,182.97,182.84,99.87980833]
[1736807430060,8.2508109,182.91,182.84,99.87980833]
[1736807430267,8.2508109,182.91,182.89,2.7347]
[1736807431356,1.644,182.97,182.85,8.2508109]
[1736807431557,1.644,182.97,182.87,8.2508109]
[1736807431769,8.2508109,182.94,182.87,8.2508109]
[1736807432665,8.2508109,182.94,182.89,2.7348]
[1736807432863,8.2508109,182.94,182.87,8.2508109]
[1736807433367,8.2508109,182.94,182.92,2.7342]
[1736807434265,8.2508109,182.94,182.93,2.7342]
[1736807436165,151.62546057,183.09,182.91,8.2508109]
[1736807436366,8.2508109,183.0,182.93,8.2508109]
[1736807437267,8.2508109,182.98,182.96,2.7336]
[1736807438366,8.2508109,182.98,182.9,5.94]
[1736807438569,2.7334,182.99,182.93,2.7341]
[1736807438770,8.2508109,182.95,182.93,2.7341]
[1736807439069,8.2508109,182.95,182.92,2.7342]
[1736807439270,8.2508109,182.95,182.9,5.94]
[1736807439765,8.2508109,182.97,182.9,14.1908109]
[1736807439963,8.2508109,182.95,182.9,5.94]
[1736807440168,8.2508109,182.95,182.92,2.7342]
[1736807440769,8.2508109,182.95,182.93,2.7342]
[1736807441572,8.2508109,182.95,182.9,5.94]
[1736807441870,8.2508109,182.95,182.92,2.7343]
[1736807442571,8.2508109,182.93,182.86,3.2856]
[1736807442774,8.2508109,182.91,182.89,5.94]
[1736807443772,8.2508109,182.91,182.85,5.65684379]
[1736807443972,8.2508109,182.91,182.85,11.59684379]
[1736807444175,8.2508109,182.91,182.88,2.7349]
[1736807445272,8.2508109,182.91,182.89,2.7347]
[1736807445471,8.2508109,182.91,182.86,5.94]
[1736807445776,8.2508109,182.91,182.87,2.735]
[1736807445973,8.2508109,182.89,182.87,2.735]
[1736807446478,8.2508109,182.89,182.85,2.7352]
[1736807446671,8.2508109,182.87,182.85,2.7352]
[1736807448473,8.2508109,182.87,182.81,93.72]
[1736807448679,5.94,182.97,182.83,2.7356]
[1736807448980,8.2508109,182.86,182.83,2.7356]
[1736807450078,8.2508109,182.84,182.81,2.7359]
[1736807450283,5.0422,182.96,182.77,35.87007356]
[1736807450284,8.2508109,182.82,182.77,35.87007356]
[1736807450583,8.2508109,182.82,182.79,2.7362]
[1736807450783,8.2508109,182.8,182.75,101.5312717]
[1736807450975,3.351,182.87,182.75,101.5312717]
[1736807451172,8.2508109,182.8,182.78,2.7363]
[1736807451379,8.2508109,182.8,182.75,101.5312717]
[1736807451879,8.2508109,182.8,182.78,2.7363]
[1736807453379,8.2508109,182.8,182.77,2.7366]
[1736807453977,8.2508109,182.8,182.75,93.9884717]
[1736807454180,8.2508109,182.8,182.76,2.7367]
[1736807455084,8.2508109,182.78,182.76,2.7367]
[1736807455274,8.2508109,182.78,182.75,96.7253717]
[1736807455679,8.2508109,182.78,182.75,2.7369]
[1736807457480,8.2508109,182.78,182.71,5.94]